bitfinex/quotes_BTCUSD_20220307
["timestamp","ask_amount","ask_price","bid_price","bid_amount"]
[1646684134226,0.266805,37434.0,37430.0,0.46014889]
[1646684134525,0.00012476,37433.0,37430.0,0.46014889]
[1646684134727,0.00012476,37433.0,37431.0,0.1]
[1646684135229,0.00012476,37433.0,37432.0,0.0668]
[1646684135477,0.116805,37434.0,37432.0,0.0668]
[1646684135677,0.11691232,37434.0,37432.0,0.0668]
[1646684136182,0.15,37433.0,37430.0,0.133601]
[1646684136377,0.3450745,37433.0,37430.0,0.133601]
[1646684136776,0.15,37431.0,37430.0,0.133601]
[1646684137178,0.05,37431.0,37430.0,0.133601]
[1646684137579,0.066805,37434.0,37430.0,0.133601]
[1646684137978,0.066805,37434.0,37430.0,0.951001]
[1646684138279,0.183609,37435.0,37433.0,0.0285]
[1646684138579,0.15,37434.0,37433.0,0.095301]
[1646684138779,0.183609,37435.0,37433.0,0.095301]
[1646684138979,0.15,37434.0,37433.0,0.095301]
[1646684139625,0.15,37434.0,37433.0,0.066801]
[1646684139827,0.05010946,37435.0,37433.0,0.066801]
[1646684140032,0.00010946,37435.0,37433.0,0.066801]
[1646684140229,0.116803,37436.0,37433.0,0.066801]
[1646684140628,0.00010946,37435.0,37433.0,0.066801]
[1646684140929,0.00010946,37435.0,37434.0,0.950962]
[1646684141240,0.00010946,37435.0,37434.0,1.050962]
[1646684141426,0.15,37443.0,37434.0,1.050962]
[1646684141627,0.15,37443.0,37436.0,0.8174]
[1646684141830,0.1522,37444.0,37441.0,0.24289648]
[1646684142029,0.1522,37444.0,37435.0,0.1]
[1646684142030,0.50859326,37444.0,37435.0,0.1]
[1646684142230,0.185775,37444.0,37435.0,0.1]
[1646684142430,0.0022,37444.0,37435.0,0.1]
[1646684142633,0.15,37443.0,37435.0,0.1]
[1646684142830,0.216785,37441.0,37435.0,0.1]
[1646684143081,0.216785,37441.0,37436.0,0.133579]
[1646684143082,0.15,37437.0,37436.0,0.133579]
[1646684143674,0.2,37437.0,37436.0,0.133579]
[1646684144077,0.2,37437.0,37434.0,0.066801]
[1646684144275,0.05,37437.0,37434.0,0.066801]
[1646684144475,0.05,37437.0,37433.0,9e-05]
[1646684144476,0.15,37435.0,37433.0,9e-05]
[1646684144679,0.2,37435.0,37434.0,0.02]
[1646684145081,0.59168823,37435.0,37434.0,0.02]
[1646684145278,0.5068055,37435.0,37434.0,0.02]
[1646684146079,0.44,37435.0,37434.0,0.02]
[1646684146381,0.85429511,37435.0,37434.0,0.02]
[1646684147233,0.435,37435.0,37434.0,0.02]
[1646684147433,0.385,37435.0,37434.0,0.02]
[1646684147633,0.185,37435.0,37434.0,0.014499]
[1646684147833,0.435,37435.0,37434.0,0.014589]
[1646684148034,0.185,37435.0,37434.0,0.014589]
[1646684148442,0.15,37435.0,37434.0,0.014589]
[1646684148634,0.58359,37440.0,37435.0,0.566796]
[1646684148635,0.13359,37440.0,37435.0,0.566796]
[1646684148835,0.02677,37443.0,37436.0,0.18552641]
[1646684149034,0.066794,37440.0,37436.0,0.18552641]
[1646684149238,0.0022,37444.0,37436.0,0.28552641]
[1646684149437,0.0022,37444.0,37436.0,1.23650941]
[1646684149733,0.633586,37443.0,37441.0,0.06679]
[1646684149938,0.133586,37443.0,37441.0,0.06679]
[1646684150148,0.0033,37448.0,37441.0,0.06679]
[1646684150149,0.30261544,37452.0,37449.0,0.11698136]
[1646684150337,0.0011,37453.0,37449.0,0.04982464]
[1646684150579,0.0011,37453.0,37450.0,0.06678246]
[1646684150783,0.0011,37453.0,37450.0,0.11678246]
[1646684150987,0.00020357,37460.0,37450.0,0.31658246]
[1646684151184,0.00020357,37460.0,37457.0,0.28260434]
[1646684151379,0.00020357,37460.0,37457.0,0.33260434]
[1646684151577,0.00153124,37459.0,37457.0,0.38260434]
[1646684152077,0.00153124,37459.0,37457.0,0.5161377]
[1646684152277,0.03792481,37465.0,37457.0,0.67747233]
[1646684152679,0.00010783,37460.0,37457.0,0.67747233]
[1646684153583,0.02677,37462.0,37457.0,0.10795709]
[1646684153977,0.03792481,37465.0,37457.0,0.24149045]
[1646684154228,0.03792481,37465.0,37458.0,0.1998]
[1646684154534,0.03792481,37465.0,37458.0,0.333322]
[1646684154927,0.01115481,37465.0,37464.0,0.17517406]
[1646684155136,0.00895481,37465.0,37464.0,0.47026183]
[1646684155331,0.00157268,37470.0,37465.0,0.8]
[1646684155332,0.24607268,37470.0,37465.0,0.8]
[1646684155534,0.0011,37475.0,37465.0,0.8]
[1646684155535,0.21503885,37478.0,37465.0,0.066739]
[1646684155732,0.14890481,37474.0,37464.0,0.20068]
[1646684155930,0.0018,37478.0,37464.0,0.05]
[1646684155931,0.25159735,37467.0,37464.0,0.05]
[1646684156232,0.02677,37469.0,37464.0,0.06675941]
[1646684156233,0.14890481,37468.0,37464.0,0.06675941]
[1646684156429,0.39010481,37476.0,37464.0,0.06675941]
[1646684156629,0.39010481,37476.0,37463.0,0.233525]
[1646684156830,0.66875196,37476.0,37467.0,0.25939215]
[1646684157029,0.02677,37475.0,37467.0,0.30939215]
[1646684157229,0.02177,37475.0,37467.0,0.35939215]
[1646684157428,0.06827012,37473.0,37469.0,0.066747]
[1646684157628,0.66875196,37476.0,37469.0,0.066747]
[1646684158084,0.02677,37475.0,37469.0,0.116747]
[1646684158483,0.02677,37475.0,37469.0,0.066747]
[1646684158686,0.0001232,37474.0,37469.0,0.066747]
[1646684159088,0.0001232,37474.0,37470.0,0.06674864]
[1646684159286,0.0001232,37474.0,37470.0,0.11674864]
[1646684159484,1.01850639,37476.0,37470.0,0.11674864]
[1646684159689,0.640598,37471.0,37469.0,0.20024428]
[1646684159887,0.640598,37471.0,37465.0,0.002]
[1646684159888,0.409398,37469.0,37465.0,0.002]
[1646684160186,0.37510481,37467.0,37465.0,0.06876496]
[1646684160386,0.2312,37467.0,37465.0,0.06876496]
[1646684160586,0.30136625,37464.0,37463.0,0.133534]
[1646684160786,2.05330281,37466.0,37463.0,0.133534]
[1646684160787,1.5,37466.0,37463.0,0.133534]
[1646684160985,1.5,37466.0,37464.0,0.01068]
[1646684161186,1.5,37466.0,37464.0,0.13352465]
[1646684161393,0.00012633,37472.0,37464.0,0.13352465]
[1646684161591,0.00012633,37472.0,37465.0,0.05]
[1646684161830,0.00012633,37472.0,37470.0,0.74828579]
[1646684162029,0.25797,37475.0,37470.0,0.79828579]
[1646684162230,0.33715356,37474.0,37470.0,0.86503479]
[1646684162427,0.409398,37471.0,37470.0,0.79828579]
[1646684162828,0.00012633,37472.0,37470.0,0.79828579]
[1646684163230,0.02677,37474.0,37470.0,0.79828579]
[1646684163528,0.00011214,37472.0,37470.0,0.79828579]
[1646684163728,0.23131214,37472.0,37470.0,0.79828579]
[1646684163934,0.33715356,37471.0,37470.0,0.79828579]
[1646684164129,0.74655156,37471.0,37470.0,0.79828579]
[1646684164930,0.409398,37471.0,37470.0,0.80896479]
[1646684165328,0.409398,37471.0,37470.0,0.79828579]
[1646684165981,0.65930281,37471.0,37470.0,0.74828579]
[1646684166283,0.65930281,37471.0,37470.0,0.74328579]
[1646684166284,0.72287585,37471.0,37470.0,0.74328579]
[1646684166585,0.72287585,37471.0,37470.0,0.26404993]
[1646684166782,0.71287585,37471.0,37470.0,0.26404993]
[1646684167286,1.67677,37470.0,37465.0,9e-05]
[1646684167484,1.67677,37470.0,37443.0,0.317106]
[1646684167485,0.25797,37464.0,37443.0,0.317106]
[1646684167688,0.37510481,37457.0,37451.0,0.1998]
[1646684167884,0.55323781,37452.0,37433.0,0.44610528]
[1646684168085,0.46577428,37451.0,37434.0,0.02059419]
[1646684168286,0.2312,37445.0,37438.0,0.066807]
[1646684168482,0.0493,37450.0,37449.0,0.28432526]
[1646684168483,0.1493,37450.0,37449.0,0.28432526]
[1646684168683,0.0493,37450.0,37449.0,0.28432526]
[1646684169828,0.0513,37450.0,37449.0,0.28432526]
[1646684170234,0.002,37450.0,37449.0,0.38432526]
[1646684170826,0.71300481,37462.0,37450.0,1.65]
[1646684170827,0.8003,37462.0,37450.0,1.65]
[1646684171033,0.9564,37464.0,37460.0,0.3942027]
[1646684171232,0.02677,37464.0,37460.0,0.26381064]
[1646684171427,0.02677,37464.0,37460.0,0.05]
[1646684171627,0.17067481,37464.0,37460.0,0.05]
[1646684171830,0.23109152,37462.0,37460.0,0.05]
[1646684172028,0.02677,37461.0,37453.0,0.05]
[1646684172226,0.25786152,37458.0,37453.0,0.116784]
[1646684172428,0.23109152,37458.0,37457.0,0.26809188]
[1646684173082,0.23109152,37458.0,37456.0,0.05]
[1646684173282,0.23109152,37458.0,37455.0,0.116776]
[1646684173483,0.23109152,37458.0,37455.0,0.066776]
[1646684173882,0.17647046,37457.0,37454.0,0.233552]
[1646684174082,0.33259978,37457.0,37454.0,0.233552]
[1646684174585,0.33259978,37457.0,37455.0,0.133564]
[1646684174782,0.23109152,37458.0,37456.0,0.23701356]
[1646684174983,0.33259978,37457.0,37456.0,0.23701356]
[1646684175184,0.02677,37460.0,37456.0,0.28701356]
[1646684175384,0.02677,37460.0,37457.0,0.1998]
[1646684175385,0.23109152,37460.0,37457.0,0.1998]
[1646684175686,0.35936978,37463.0,37457.0,0.13353212]
[1646684175888,0.001,37460.0,37459.0,0.00609519]
[1646684176090,0.001,37460.0,37459.0,0.16744418]
[1646684176730,0.23109152,37467.0,37464.0,0.3116277]
[1646684176931,0.23109152,37467.0,37460.0,0.6]
[1646684176932,0.23109152,37467.0,37463.0,0.133527]
[1646684177135,0.23109152,37467.0,37464.0,0.05]
[1646684177331,0.23109152,37467.0,37456.0,0.01068]
[1646684177536,0.23109152,37467.0,37451.0,0.00609519]
[1646684177537,0.02677,37463.0,37451.0,0.00609519]
[1646684177732,0.23109152,37460.0,37451.0,0.00609519]
[1646684177932,0.23109152,37460.0,37459.0,0.24266271]
[1646684178130,0.23109152,37460.0,37455.0,0.06677642]
[1646684178932,0.22609152,37460.0,37454.0,0.36970657]
[1646684179133,0.22609152,37460.0,37455.0,0.47515128]
[1646684179332,0.22609152,37460.0,37458.0,0.066775]
[1646684179535,0.22609152,37460.0,37459.0,0.06677151]
[1646684179933,0.001,37460.0,37458.0,0.066775]
[1646684180979,0.001,37460.0,37458.0,0.266575]
[1646684181179,0.05,37462.0,37459.0,0.05]
[1646684181381,0.22609152,37464.0,37461.0,0.2682496]
[1646684181580,0.22609152,37464.0,37461.0,0.4350156]
[1646684181782,0.22609152,37464.0,37462.0,0.1335232]
[1646684181981,0.22609152,37464.0,37461.0,0.3850156]
[1646684182382,0.22609152,37464.0,37461.0,0.4350156]
[1646684183080,0.22609152,37464.0,37462.0,0.0667666]
[1646684183283,0.22609152,37464.0,37461.0,0.166766]
[1646684183686,0.32609152,37464.0,37461.0,0.127446]
[1646684184085,0.32609152,37464.0,37461.0,0.18353931]
[1646684184355,0.32609152,37464.0,37461.0,0.13353931]
[1646684184552,0.32609152,37464.0,37462.0,0.05]
[1646684184753,0.22609152,37464.0,37462.0,0.05]
[1646684184956,0.22609152,37464.0,37461.0,0.18353931]
[1646684184957,0.1,37463.0,37461.0,0.18353931]
[1646684185154,0.22609152,37464.0,37461.0,0.18353931]
[1646684185555,0.22609152,37464.0,37461.0,0.116766]
[1646684185754,0.409335,37463.0,37461.0,0.116766]
[1646684185953,0.22609152,37464.0,37461.0,0.066766]
[1646684186153,0.509335,37462.0,37461.0,0.066766]
[1646684186353,0.1,37462.0,37460.0,0.183532]
[1646684186762,0.32609152,37462.0,37460.0,0.183532]
[1646684187158,0.55323981,37461.0,37460.0,0.133532]
[1646684187557,0.24390481,37461.0,37460.0,0.133532]
[1646684187754,0.72744671,37461.0,37460.0,0.133532]
[1646684187979,0.65323981,37461.0,37460.0,0.133532]
[1646684188378,0.24390481,37461.0,37460.0,0.133532]
[1646684188579,0.509335,37461.0,37460.0,0.133532]
[1646684188783,0.65323981,37461.0,37460.0,0.133532]
[1646684189779,0.509335,37461.0,37460.0,0.133532]
[1646684190181,0.1,37461.0,37460.0,0.133532]
[1646684190380,0.509335,37461.0,37460.0,0.133532]
[1646684190581,0.509335,37461.0,37459.0,0.133568]
[1646684190783,0.509335,37461.0,37460.0,0.05]
[1646684190784,0.24390481,37461.0,37460.0,0.05]
[1646684191182,0.57551183,37461.0,37459.0,0.07641619]
[1646684191380,0.65323981,37461.0,37460.0,0.05]
[1646684191583,0.65323981,37461.0,37458.0,0.010682]
[1646684191584,0.98261329,37461.0,37458.0,0.010682]
[1646684191865,0.98261329,37461.0,37442.0,0.00609519]
[1646684191866,0.22609152,37459.0,37453.0,0.133594]
[1646684192066,0.48484624,37454.0,37453.0,0.133594]
[1646684192262,0.81421972,37454.0,37453.0,0.133594]
[1646684192665,1.22355472,37454.0,37453.0,0.133594]
[1646684192867,1.25032472,37454.0,37449.0,0.133603]
[1646684193064,0.22109152,37451.0,37449.0,0.133603]
[1646684193264,0.85430808,37454.0,37450.0,0.05]
[1646684193465,0.22109152,37451.0,37449.0,0.133603]
[1646684195487,0.22109152,37451.0,37449.0,0.144288]
[1646684195780,0.22109152,37451.0,37449.0,0.133603]
[1646684195982,1.03109116,37459.0,37449.0,0.133603]
[1646684195983,0.08008916,37459.0,37451.0,0.35914231]
[1646684196382,0.08008916,37459.0,37453.0,0.066784]
[1646684196582,0.72529082,37458.0,37453.0,0.066784]
[1646684196783,0.72529082,37458.0,37451.0,0.40914231]
[1646684196784,0.32993612,37457.0,37451.0,0.40914231]
[1646684197084,0.02677,37456.0,37451.0,0.40914231]
[1646684197482,0.436105,37455.0,37451.0,0.40414231]
[1646684197683,0.32993612,37454.0,37451.0,0.40414231]
[1646684197881,0.10258024,37454.0,37451.0,0.40414231]
[1646684198188,0.32843518,37453.0,37451.0,0.40414231]
[1646684198382,0.31595582,37458.0,37451.0,0.40414231]
[1646684198584,0.458635,37457.0,37451.0,0.40414231]
[1646684198781,0.409335,37456.0,37451.0,0.40414231]
[1646684198982,0.0493,37455.0,37451.0,0.40414231]
[1646684199234,0.0493,37456.0,37451.0,0.47093831]
[1646684199435,0.07444675,37454.0,37451.0,0.47093831]
[1646684199635,0.26970771,37452.0,37451.0,0.40414231]
[1646684199837,0.07444675,37454.0,37451.0,0.40414231]
[1646684200037,0.28802098,37455.0,37451.0,0.40414231]
[1646684200238,0.28802098,37455.0,37451.0,0.47093831]
[1646684200438,0.409335,37454.0,37451.0,0.47093831]
[1646684200643,0.0493,37456.0,37451.0,0.40414231]
[1646684200843,0.409335,37454.0,37451.0,0.40414231]
[1646684201040,0.066801,37455.0,37451.0,0.40414231]
[1646684201245,0.409335,37454.0,37451.0,0.40414231]
[1646684201444,0.166801,37455.0,37451.0,0.40414231]
[1646684201445,0.1,37455.0,37451.0,0.40414231]
[1646684201641,0.28557285,37454.0,37451.0,0.40414231]
[1646684202042,0.409335,37454.0,37451.0,0.40414231]
[1646684202242,0.409335,37454.0,37451.0,0.39414231]
[1646684202444,0.409335,37453.0,37451.0,0.35914231]
[1646684202641,0.409335,37454.0,37451.0,0.35914231]
[1646684202841,0.06409923,37452.0,37451.0,0.35914231]
[1646684203078,0.1,37455.0,37451.0,0.35914231]
[1646684203678,0.409335,37457.0,37451.0,0.35914231]
[1646684204078,0.1,37456.0,37451.0,0.35914231]
[1646684204281,0.06466099,37455.0,37451.0,0.35914231]
[1646684205477,0.1,37456.0,37451.0,0.35914231]
[1646684205679,0.409335,37455.0,37451.0,0.35914231]
[1646684206081,0.69847874,37455.0,37451.0,0.35914231]
[1646684206737,0.409335,37454.0,37451.0,0.35914231]
[1646684207139,0.1,37456.0,37451.0,0.35914231]
[1646684207339,0.08008916,37459.0,37452.0,0.00609519]
[1646684207543,0.08008916,37459.0,37451.0,0.40914231]
[1646684207739,0.409335,37458.0,37453.0,0.066788]
[1646684207939,0.47292459,37458.0,37453.0,0.066788]
[1646684208139,0.47292459,37458.0,37455.0,0.18437544]
[1646684208541,0.47217296,37458.0,37453.0,0.066788]
[1646684208743,0.47217296,37458.0,37451.0,0.40914231]
[1646684208942,0.409335,37457.0,37451.0,0.40914231]
[1646684209541,0.409335,37457.0,37451.0,0.61310438]
[1646684209542,0.71517433,37457.0,37451.0,0.61310438]
[1646684209839,0.71517433,37457.0,37451.0,0.40914231]
[1646684210040,0.22466521,37456.0,37451.0,0.40914231]
[1646684210245,0.22466521,37456.0,37455.0,0.00418284]
[1646684210882,0.63400021,37456.0,37455.0,0.00418284]
[1646684211289,0.22466521,37456.0,37455.0,0.00418284]
[1646684211483,0.63400021,37456.0,37455.0,0.00418284]
[1646684211984,0.409335,37456.0,37455.0,0.00418284]
[1646684213585,0.30583933,37457.0,37455.0,0.00418284]
[1646684213789,0.32617251,37458.0,37455.0,0.00418284]
[1646684213989,0.06283796,37458.0,37455.0,0.00418284]
[1646684214233,0.08008916,37459.0,37455.0,0.00418284]
[1646684214731,0.08008916,37459.0,37455.0,0.48855132]
[1646684215130,0.08008916,37459.0,37455.0,0.32095171]
[1646684215631,0.409335,37458.0,37455.0,0.00418284]
[1646684218081,0.65,37458.0,37454.0,0.06597184]
[1646684218482,0.409335,37457.0,37454.0,0.06597184]
[1646684218683,0.8336469,37456.0,37451.0,0.35914231]
[1646684218884,0.409335,37454.0,37451.0,0.35914231]
[1646684219087,0.409335,37452.0,37451.0,0.33414231]
[1646684219282,1.65,37451.0,37444.0,0.00609519]
[1646684219485,1.65,37451.0,37441.0,0.01333]
[1646684219486,0.21959478,37444.0,37441.0,0.01333]
[1646684219684,0.21959478,37444.0,37438.0,0.4473]
[1646684219685,0.409335,37441.0,37438.0,0.45339519]
[1646684219885,0.409335,37442.0,37438.0,0.4473]
[1646684220086,0.458635,37440.0,37439.0,0.066816]
[1646684220284,0.458635,37442.0,37438.0,0.4473]
[1646684220483,0.458635,37442.0,37438.0,0.2475]
[1646684220484,0.0493,37442.0,37438.0,0.2475]
[1646684221088,0.0493,37442.0,37441.0,0.29051254]
[1646684221290,0.37613018,37442.0,37438.0,0.25359519]
[1646684221499,0.64731334,37442.0,37438.0,0.2475]
[1646684221737,0.57231334,37442.0,37438.0,0.2475]
[1646684221935,0.30113018,37442.0,37438.0,0.314319]
[1646684222134,0.30113018,37442.0,37438.0,0.066819]
[1646684222334,0.30113018,37442.0,37439.0,0.24405011]
[1646684222535,0.0493,37442.0,37441.0,0.15]
[1646684222736,0.0493,37442.0,37441.0,0.2]
[1646684222936,0.0493,37442.0,37441.0,0.21582619]
[1646684223134,0.0493,37442.0,37441.0,0.31332619]
[1646684223336,0.0493,37442.0,37441.0,0.47233235]
[1646684223736,0.0493,37442.0,37441.0,0.31332619]
[1646684223937,0.0493,37442.0,37441.0,0.30359519]
[1646684224339,0.0493,37442.0,37441.0,0.2475]
[1646684224537,0.0493,37442.0,37441.0,0.2975]
[1646684224736,0.0493,37442.0,37441.0,0.30359519]
[1646684224938,0.0493,37442.0,37441.0,0.2975]
[1646684225140,0.0493,37442.0,37441.0,0.2475]
[1646684225338,0.08786526,37449.0,37441.0,0.2475]
[1646684225591,0.458635,37448.0,37442.0,0.066812]
[1646684225991,0.0606429,37444.0,37439.0,0.24405011]
[1646684226294,0.28643251,37449.0,37444.0,0.11632698]
[1646684226295,0.8174,37445.0,37444.0,0.11632698]
[1646684226493,1.226735,37445.0,37444.0,0.11632698]
[1646684226690,2.4674,37444.0,37443.0,0.2475]
[1646684226895,2.4674,37444.0,37425.0,1.7616278]
[1646684226896,0.8174,37441.0,37428.0,0.21744445]
[1646684227091,0.570035,37442.0,37425.0,0.80874445]
[1646684227092,0.409335,37434.0,37425.0,0.80874445]
[1646684227290,0.409335,37434.0,37424.0,0.13976819]
[1646684227291,0.32277826,37433.0,37424.0,0.35721264]
[1646684227691,1.05946389,37438.0,37424.0,0.34524622]
[1646684227692,0.0493,37432.0,37424.0,0.34524622]
[1646684227891,0.0493,37432.0,37424.0,0.13976819]
[1646684228096,1.87737678,37431.0,37424.0,0.13976819]
[1646684228295,1.86,37430.0,37421.0,0.133687]
[1646684228492,0.89281326,37429.0,37421.0,0.133687]
[1646684228694,0.458635,37428.0,37423.0,0.066847]
[1646684228894,0.32277826,37427.0,37423.0,0.066847]
[1646684229097,0.32277826,37427.0,37419.0,0.41593006]
[1646684229098,0.75,37426.0,37419.0,0.41593006]
[1646684229342,0.32158122,37425.0,37419.0,0.29530308]
[1646684229546,0.409335,37424.0,37419.0,0.29530308]
[1646684229743,0.32260756,37423.0,37419.0,0.29530308]
[1646684230842,0.0563,37424.0,37419.0,0.29530308]
[1646684231142,0.409335,37423.0,37419.0,0.29530308]
[1646684231344,0.70367834,37423.0,37419.0,0.29530308]
[1646684231542,0.409335,37422.0,37416.0,2.53362074]
[1646684231742,0.1607,37424.0,37416.0,2.53362074]
[1646684231940,0.409335,37423.0,37416.0,0.05]
[1646684232144,0.1607,37424.0,37415.0,0.05]
[1646684232340,0.1607,37424.0,37415.0,0.22352924]
[1646684232542,0.44164583,37424.0,37417.0,0.27295402]
[1646684232741,0.44164583,37424.0,37417.0,0.38980902]
[1646684232985,0.8174,37423.0,37417.0,0.38980902]
[1646684233185,0.44164583,37424.0,37417.0,0.38980902]
[1646684233385,0.409335,37423.0,37417.0,0.38980902]
[1646684233587,0.44164583,37424.0,37417.0,0.38980902]
[1646684233987,0.409335,37423.0,37417.0,0.38980902]
[1646684234186,0.44164583,37424.0,37417.0,0.40050302]
[1646684234388,0.409335,37423.0,37417.0,0.33364802]
[1646684234692,0.409335,37423.0,37417.0,0.27295402]
[1646684234693,0.558635,37422.0,37417.0,0.27295402]
[1646684234887,0.558635,37422.0,37417.0,0.33980902]
[1646684235689,0.1493,37422.0,37417.0,0.33980902]
[1646684236091,0.0493,37422.0,37417.0,0.33980902]
[1646684236590,0.409335,37421.0,37417.0,0.33980902]
[1646684236846,0.0493,37422.0,37417.0,0.33980902]
[1646684237252,0.0493,37422.0,37419.0,0.21556313]
[1646684237452,0.08016015,37426.0,37420.0,0.33238456]
[1646684237651,0.2,37434.0,37420.0,0.210265]
[1646684237652,0.1,37434.0,37420.0,0.210265]
[1646684237950,0.4,37439.0,37422.0,0.009761]
[1646684238148,0.48013139,37439.0,37431.0,0.0999]
[1646684238355,0.38013139,37439.0,37432.0,0.23720484]
[1646684238549,0.18013139,37439.0,37432.0,0.30402984]
[1646684238755,0.08013139,37439.0,37432.0,0.30402984]
[1646684239249,0.08013139,37439.0,37435.0,0.18324004]
[1646684239654,0.08013139,37439.0,37435.0,0.23324004]
[1646684239853,0.2,37443.0,37435.0,0.116813]
[1646684240050,0.1,37449.0,37435.0,0.116813]
[1646684240051,0.2,37437.0,37435.0,0.066813]
[1646684240249,0.73194256,37436.0,37430.0,0.001]
[1646684240487,0.23611178,37434.0,37430.0,0.001]
[1646684240687,0.23611178,37434.0,37432.0,0.00015886]
[1646684240887,0.302,37439.0,37433.0,0.066829]
[1646684240888,0.32260756,37438.0,37433.0,0.066829]
[1646684241087,0.402,37439.0,37436.0,0.26467794]
[1646684241088,0.302,37439.0,37436.0,0.26467794]
[1646684241289,0.102,37439.0,37436.0,0.26467794]
[1646684241490,0.1,37439.0,37436.0,0.26467794]
[1646684241886,0.54734982,37443.0,37436.0,0.43148202]
[1646684242193,0.1,37447.0,37438.0,0.009736]
[1646684242194,0.007,37439.0,37438.0,0.009736]
[1646684243191,0.007,37439.0,37437.0,0.01335]
[1646684243389,0.05888383,37444.0,37437.0,0.15]
[1646684243590,0.409335,37443.0,37437.0,0.15]
[1646684243789,0.2,37446.0,37437.0,0.15]
[1646684243988,0.409335,37445.0,37437.0,0.15]
[1646684244233,0.1,37448.0,37436.0,0.43149394]
[1646684244632,0.2,37448.0,37436.0,0.43149394]
[1646684244832,0.409335,37447.0,37436.0,0.43149394]
[1646684245038,0.40435351,37447.0,37439.0,0.22488519]
[1646684245234,0.40435351,37447.0,37441.0,0.066807]
[1646684245439,0.409335,37442.0,37439.0,0.05]
[1646684245633,0.409335,37442.0,37436.0,0.05]
[1646684245834,0.2694807,37441.0,37436.0,0.010688]
[1646684246032,0.409344,37440.0,37436.0,0.010688]
[1646684246233,0.003,37442.0,37433.0,0.00016062]
[1646684246438,0.478585,37437.0,37429.0,0.01335]
[1646684246635,0.409344,37436.0,37428.0,0.1998]
[1646684246837,0.487051,37431.0,37428.0,0.1998]
[1646684247138,0.32260756,37430.0,37423.0,0.279041]
[1646684247336,0.2,37430.0,37423.0,0.279041]
[1646684247533,0.2,37430.0,37416.0,0.07292851]
[1646684247534,0.28008217,37428.0,37422.0,0.133682]
[1646684247738,0.28008217,37428.0,37422.0,0.066847]
[1646684247992,0.32299156,37427.0,37422.0,0.066847]
[1646684248186,0.37808217,37428.0,37422.0,0.066847]
[1646684248389,0.73233556,37427.0,37422.0,0.066847]
[1646684248588,0.933557,37426.0,37419.0,0.133693]
[1646684248889,0.409344,37422.0,37418.0,0.5610202]
[1646684249087,0.409344,37420.0,37418.0,0.5610202]
[1646684249285,0.2,37422.0,37418.0,0.5610202]
[1646684249286,1.02706069,37419.0,37418.0,0.5610202]
[1646684249687,0.409344,37419.0,37418.0,0.5610202]
[1646684250189,0.414344,37419.0,37418.0,0.5610202]
[1646684250591,0.73733556,37419.0,37418.0,0.5610202]
[1646684250797,0.88663556,37419.0,37418.0,0.5610202]
[1646684251189,1.02038056,37419.0,37418.0,0.5610202]
[1646684251387,0.94850556,37419.0,37418.0,0.5610202]
[1646684251591,0.88163556,37419.0,37418.0,0.5610202]
[1646684251840,0.658644,37419.0,37418.0,0.5610202]
[1646684252035,0.558644,37419.0,37418.0,0.5610202]
[1646684252435,0.758644,37419.0,37418.0,0.5610202]
[1646684253040,1.08163556,37419.0,37418.0,0.5610202]
[1646684253236,1.34998678,37419.0,37418.0,0.5610202]
[1646684254040,1.34998678,37419.0,37418.0,0.20636448]
[1646684254237,1.51068678,37419.0,37418.0,0.20636448]
[1646684254538,1.61068678,37419.0,37418.0,0.20636448]
[1646684254946,0.29368708,37412.0,37405.0,0.01336]
[1646684255138,0.2,37409.0,37405.0,0.01336]
[1646684255338,0.2,37409.0,37405.0,0.0136276]
[1646684255339,0.7331012,37408.0,37405.0,0.0136276]
[1646684255592,0.7331012,37408.0,37405.0,0.0002676]
[1646684255593,0.2,37407.0,37405.0,0.0002676]
[1646684255789,0.7331012,37406.0,37405.0,0.0002676]
[1646684255986,0.7824012,37406.0,37405.0,0.0002676]
[1646684256195,0.7824012,37406.0,37398.0,0.0999]
[1646684256196,1.45,37402.0,37398.0,0.0999]
[1646684256393,0.1607,37399.0,37398.0,0.0999]
[1646684256588,0.1607,37399.0,37390.0,0.133806]
[1646684256589,0.409344,37398.0,37390.0,0.133806]
[1646684256788,0.409344,37396.0,37390.0,0.133806]
[1646684256987,0.7824012,37396.0,37390.0,0.133806]
[1646684257190,0.483644,37396.0,37395.0,0.4288]
[1646684257388,0.483644,37396.0,37390.0,0.133806]
[1646684257389,0.8074012,37396.0,37392.0,0.066906]
[1646684257591,0.8174,37392.0,37385.0,0.133823]
[1646684257789,0.1,37395.0,37392.0,0.15620103]
[1646684257992,0.409377,37393.0,37392.0,0.15620103]
[1646684258193,0.458677,37393.0,37392.0,0.15620103]
[1646684258589,0.458677,37393.0,37381.0,0.13380905]
[1646684258590,0.409377,37391.0,37381.0,0.13380905]
[1646684258791,0.3730572,37390.0,37379.0,0.5]
[1646684258990,0.0493,37389.0,37379.0,0.5]
[1646684259438,0.3237572,37388.0,37383.0,0.31345542]
[1646684259636,0.3237572,37388.0,37382.0,0.33876568]
[1646684260038,0.409377,37388.0,37382.0,0.33876568]
[1646684260238,0.7331342,37387.0,37382.0,0.33876568]
[1646684260437,0.409377,37388.0,37382.0,0.066914]
[1646684260637,0.0493,37387.0,37382.0,0.116914]
[1646684260839,0.0493,37387.0,37380.0,0.26375392]
[1646684260840,0.409377,37386.0,37380.0,0.26375392]
[1646684261038,0.409377,37386.0,37380.0,0.26352966]
[1646684261239,0.609377,37386.0,37381.0,0.00022425]
[1646684261638,0.0493,37385.0,37381.0,0.00022425]
[1646684262038,0.409377,37384.0,37381.0,0.00022425]
[1646684262237,0.409377,37384.0,37380.0,0.31352966]
[1646684263080,0.0493,37385.0,37380.0,0.31352966]
[1646684263284,0.3807931,37385.0,37380.0,0.31352966]
[1646684263884,0.409377,37384.0,37380.0,0.31352966]
[1646684264183,0.409377,37384.0,37380.0,0.05]
[1646684264384,0.7408701,37383.0,37379.0,0.05]
[1646684264586,0.0493,37382.0,37372.0,0.066933]
[1646684264787,0.409377,37381.0,37372.0,0.066933]
[1646684264985,0.3493,37382.0,37378.0,0.00020184]
[1646684265186,0.1493,37382.0,37378.0,0.00020184]